[Event "Skalica Open 2019"]
[Site "Skalica"]
[Date "2019.08.26"]
[Round "2.5"]
[White "Kuna, Martin"]
[Black "Pulpan, Jakub"]
[Result "0-1"]
[ECO "A45"]
[WhiteElo "1969"]
[BlackElo "2397"]
[Annotator "ChessBase"]
[PlyCount "76"]
[EventDate "2019.08.25"]
[EventType "swiss"]
[EventCountry "SVK"]
[SourceTitle "playchess.com"]
[Source "ChessBase"]
[SourceQuality "1"]
[TimeControl "40/5400+30:1800+30"]

1. d4 {[%emt 0:00:00]} Nf6 {[%emt 0:00:00]} 2. Bf4 {[%emt 0:00:25]} d5 {[%emt 0:01:05]} 3. e3 {[%emt 0:00:58]} c5 {[%emt 0:01:42]} 4. c3 {[%emt 0:01:06]} Nc6 {[%emt 0:00:33]} 5. Nd2 {[%emt 0:00:58]} e6 {[%emt 0:03:09]} 6. Ngf3 {[%emt 0:02:32]} Be7 {[%emt 0:00:27]} 7. h3 {[%emt 0:00:37]} Bd6 {[%emt 0:00:31]} 8. Bxd6 {[%emt 0:03:40]} Qxd6 {[%emt 0:00:03]} 9. Bd3 {[%emt 0:00:12]} O-O {[%emt 0:01:02]} 10. O-O {[%emt 0:00:58]} b6 {[%emt 0:01:28]} 11. e4 {[%emt 0:06:36]} cxd4 {[%emt 0:02:36]} 12. cxd4 {[%emt 0:00:33]} dxe4 {[%emt 0:01:34]} 13. Nxe4 {[%emt 0:00:13]} Nxe4 {[%emt 0:00:42]} 14. Bxe4 {[%emt 0:00:07]} Bb7 {[%emt 0:01:01]} 15. d5 {[%emt 0:40:13]} Nb4 {[%emt 0:03:29]} 16. Ng5 {[%emt 0:04:05]} f5 17. Nxe6 {[%emt 0:06:24]} fxe4 {[%emt 0:04:09]} 18. Nxf8 {[%emt 0:00:05]} Rxf8 {[%emt 0:00:12]} 19. Qa4 {[%emt 0:08:10]} Bxd5 {[%emt 0:01:33]} 20. Rad1 {[%emt 0:02:16]} Nd3 {[%emt 0:00:37]} 21. Qd4 {[%emt 0:00:20]} Nf4 {[%emt 0:03:42]} 22. Qxe4 {[%emt 0:05:51]} Bxe4 {[%emt 0:00:14]} 23. Rxd6 {[%emt 0:00:06]} Bxg2 {[%emt 0:00:23]} 24. Re1 {[%emt 0:00:19]} Bxh3 {[%emt 0:07:56]} 25. Re7 {[%emt 0:02:06]} Bg4 {[%emt 0:00:22]} 26. Rxa7 {[%emt 0:01:51]} Nh3+ {[%emt 0:00:46]} 27. Kh2 {[%emt 0:01:29]} b5 {[%emt 0:05:58]} 28. Rb6 {[%emt 0:03:42]} Rxf2+ {[%emt 0:03:32]} 29. Kg3 {[%emt 0:00:22]} h5 {[%emt 0:00:32]} 30. Rbb7 {[%emt 0:00:59]} Rf3+ {[%emt 0:03:28]} 31. Kh2 {[%emt 0:00:13]} Kh7 {[%emt 0:00:55]} 32. Rxg7+ {[%emt 0:00:47]} Kh6 {[%emt 0:00:02]} 33. Rh7+ {[%emt 0:01:43]} Kg5 {[%emt 0:00:17]} 34. Rhf7 {[%emt 0:00:52]} Rd3 {[%emt 0:00:27]} 35. Kg2 {[%emt 0:02:27]} Kh4 {[%emt 0:01:54]} 36. Ra3 {[%emt 0:02:55]} Rd2+ {[%emt 0:00:34]} 37. Kf1 {[%emt 0:00:16]} Rxb2 {[%emt 0:00:18]} 38. Rb3 {[%emt 0:00:23]} Rxa2 {[%emt 0:00:11]} 0-1

[Event "Skalica Open 2019"]
[Site "Skalica"]
[Date "2019.08.26"]
[Round "2.9"]
[White "Aleksandrovskiy, Dmitriy"]
[Black "Husek, Martin"]
[Result "1-0"]
[ECO "A00"]
[WhiteElo "2284"]
[BlackElo "2182"]
[Annotator "NA"]
[PlyCount "87"]
[EventDate "2019.08.25"]
[EventType "swiss"]
[EventCountry "SVK"]
[SourceTitle "playchess.com"]
[Source "ChessBase"]
[SourceQuality "1"]
[TimeControl "40/5400+30:1800+30"]

1. g3 {[%emt 0:00:00]} c5 {[%emt 0:00:00]} 2. Bg2 {[%emt 0:00:00]} Nc6 {[%emt 0:00:06]} 3. Nf3 {[%emt 0:01:27]} g6 {[%emt 0:00:27]} 4. c3 {[%emt 0:05:14]} Bg7 {[%emt 0:00:56]} 5. O-O {[%emt 0:00:29]} e5 {[%emt 0:06:03]} 6. d3 {[%emt 0:00:11]} Nge7 {[%emt 0:01:41]} 7. e4 {[%emt 0:00:44]} O-O {[%emt 0:06:18]} 8. Bg5 {[%emt 0:06:56] A04: Unusual lines after 1 Nf3 and King's Indian Attack} (8. a3 a5 9. a4 d5 10. Na3 d4 11. cxd4 cxd4 12. Nc4 Rb8 13. b3 b5 14. axb5 Rxb5 15. Ba3 Nb4 16. Bxb4 axb4 {1-0 (37) Maghsoodloo,P (2673)-Grandelius,N (2694) Astana 2019}) 8... h6 {[%emt 0:03:46]} 9. Be3 {[%emt 0:00:13]} d6 {[%emt 0:00:15]} 10. b4 $146 {[%emt 0:08:56]} ({Predecessor:} 10. Qd2 Kh7 11. d4 cxd4 12. cxd4 d5 13. Nxe5 dxe4 14. Bxe4 Nxe5 15. dxe5 Qxd2 16. Nxd2 Bxe5 {0-1 (81) Bjornsson,S (2327)-Kukula,P (2211) Warsaw 2015}) 10... cxb4 {[%emt 0:22:26]} 11. cxb4 {[%emt 0:00:13]} Kh7 {[%emt 0:00:14]} 12. b5 {[%emt 0:01:52]} Nd4 {[%emt 0:00:19]} 13. Bxd4 {[%emt 0:00:30]} exd4 {[%emt 0:00:11]} 14. Nbd2 {[%emt 0:00:38]} Be6 {[%emt 0:19:21]} 15. Qa4 {[%emt 0:11:42]} Qb6 {[%emt 0:04:49]} 16. Rfc1 {[%emt 0:03:41]} Rfc8 {[%emt 0:13:28]} 17. Nc4 {[%emt 0:01:27]} Qc5 {[%emt 0:01:14]} 18. Nfd2 {[%emt 0:03:20]} a6 {[%emt 0:03:51]} (18... d5 $5 {[%cal Rd5c4]} 19. Nb3 Qc7 $11) 19. b6 {[%emt 0:05:30]} d5 {[%emt 0:07:14]} 20. exd5 {[%emt 0:02:28]} Nxd5 {[%emt 0:00:42]} 21. Ne4 {[%emt 0:07:24]} Qb5 {[%emt 0:02:22]} 22. Qd1 {[%emt 0:00:08]} Qd7 {[%emt 0:00:25]} 23. Na5 {[%emt 0:15:55]} Nxb6 {[%emt 0:01:09]} 24. Nc5 {[%emt 0:01:10]} Qe7 {[%emt 0:00:10]} 25. Nxe6 {[%emt 0:01:45]} Qxe6 {[%emt 0:00:27]} 26. Bxb7 {[%emt 0:01:20]} Rxc1 {[%emt 0:00:07]} 27. Qxc1 {[%emt 0:00:33]} Re8 {[%emt 0:00:53]} 28. Qc6 {[%emt 0:05:04]} Qxc6 {[%emt 0:01:33]} 29. Nxc6 {[%emt 0:00:08]} Re6 $14 {[%emt 0:01:56]} 30. a4 {[%emt 0:03:17]} Nd5 {[%emt 0:01:27]} 31. Nd8 {[%emt 0:00:05]} Rd6 {[%emt 0:00:20]} 32. Nxf7 {[%emt 0:00:42]} Rd7 {[%emt 0:00:01]} 33. Bc6 {[%emt 0:01:13]} Rxf7 {[%emt 0:00:05]} 34. Bxd5 {[%emt 0:00:04]} Rf5 {[%emt 0:00:13]} 35. Bc4 {[%emt 0:00:16]} Ra5 {[%emt 0:00:26]} 36. f4 {[%emt 0:00:45]} g5 {[%emt 0:01:56]} 37. f5 {[%emt 0:00:16]} Be5 {[%emt 0:00:24]} 38. Re1 {[%emt 0:02:13]} Bf6 {[%emt 0:01:04]} 39. Re6 {[%emt 0:00:11]} Kg7 {[%emt 0:00:21]} 40. Rxa6 {[%emt 0:00:23]} Rxf5 {[%emt 0:00:40]} 41. Ra7+ {[%emt 0:30:05]} Kf8 {[%emt 0:07:30]} 42. Rf7+ {[%emt 0:00:00]} Ke8 {[%emt 0:00:02]} 43. a5 {[%emt 0:00:00]} g4 {[%emt 0:03:18]} 44. a6 {[%emt 0:00:00]} 1-0

[Event "Skalica Open 2019"]
[Site "Skalica"]
[Date "2019.08.26"]
[Round "2.11"]
[White "Kuznetsov, Mikhail V."]
[Black "Khmelev, Mikhail"]
[Result "1-0"]
[ECO "A47"]
[WhiteElo "2261"]
[BlackElo "2021"]
[Annotator "ChessBase"]
[PlyCount "111"]
[EventDate "2019.08.25"]
[EventType "swiss"]
[EventCountry "SVK"]
[SourceTitle "playchess.com"]
[Source "ChessBase"]
[SourceQuality "1"]
[TimeControl "40/5400+30:1800+30"]

1. d4 {[%emt 0:00:00]} Nf6 {[%emt 0:00:00]} 2. Nf3 {[%emt 0:00:00]} b6 {[%emt 0:00:00]} 3. g3 {[%emt 0:00:00]} Bb7 {[%emt 0:00:00]} 4. Bg2 {[%emt 0:00:00]} c5 {[%emt 0:00:00]} 5. c4 {[%emt 0:03:21]} cxd4 {[%emt 0:00:00]} 6. O-O {[%emt 0:00:26]} Bxf3 {[%emt 0:00:00]} 7. Bxf3 {[%emt 0:00:42]} Nc6 {[%emt 0:00:05]} 8. Qa4 {[%emt 0:09:06]} Rc8 {[%emt 0:07:30]} 9. Rd1 {[%emt 0:03:52]} Ne5 {[%emt 0:00:45]} 10. Rxd4 {[%emt 0:02:49]} Nxf3+ {[%emt 0:00:14]} 11. exf3 {[%emt 0:00:03]} Qc7 {[%emt 0:03:14]} 12. Nc3 {[%emt 0:06:23]} Qb7 {[%emt 0:00:29]} 13. Bg5 {[%emt 0:01:46]} Qc6 {[%emt 0:07:00]} 14. Qa6 {[%emt 0:04:43]} d6 {[%emt 0:08:45]} 15. Re1 {[%emt 0:03:30]} e6 {[%emt 0:05:17]} 16. Bxf6 {[%emt 0:04:45]} gxf6 {[%emt 0:00:05]} 17. Nd5 {[%emt 0:00:11]} Qa8 {[%emt 0:02:34]} 18. Qa4+ {[%emt 0:04:50]} Kd8 {[%emt 0:01:00]} 19. Nxf6 {[%emt 0:00:40]} Rc6 {[%emt 0:01:37]} 20. Red1 {[%emt 0:04:53]} Be7 {[%emt 0:01:36]} 21. Ne4 {[%emt 0:01:45]} Kc7 {[%emt 0:06:48]} 22. b4 {[%emt 0:01:01]} e5 {[%emt 0:01:00]} 23. R4d3 {[%emt 0:04:22]} f5 {[%emt 0:00:29]} 24. Nc3 {[%emt 0:00:23]} Rd8 {[%emt 0:01:25]} 25. Nd5+ {[%emt 0:04:13]} Kd7 {[%emt 0:00:06]} 26. c5 {[%emt 0:00:45]} bxc5 {[%emt 0:01:24]} 27. b5 {[%emt 0:01:59]} Rb6 {[%emt 0:00:04]} 28. Nxb6+ {[%emt 0:00:53]} axb6 {[%emt 0:00:04]} 29. Qc4 {[%emt 0:02:15]} Rf8 {[%emt 0:00:07]} 30. a4 {[%emt 0:01:06]} h5 {[%emt 0:03:04]} 31. f4 {[%emt 0:01:23]} e4 {[%emt 0:00:25]} 32. Ra3 {[%emt 0:00:19]} Qa5 {[%emt 0:00:23]} 33. h4 {[%emt 0:01:44]} Bf6 {[%emt 0:01:45]} 34. Qd5 {[%emt 0:03:14]} Bd4 {[%emt 0:00:09]} 35. Rxd4 {[%emt 0:00:35]} cxd4 {[%emt 0:00:04]} 36. Qxd4 {[%emt 0:00:25]} Rc8 {[%emt 0:05:05]} 37. Re3 {[%emt 0:06:05]} Rc5 {[%emt 0:04:05]} 38. f3 {[%emt 0:05:21]} d5 {[%emt 0:13:45]} 39. fxe4 {[%emt 0:02:56]} fxe4 {[%emt 0:00:12]} 40. Rxe4 {[%emt 0:02:31]} Qc3 {[%emt 0:00:07]} 41. Qxc3 {[%emt 0:31:01]} Rxc3 {[%emt 0:30:06]} 42. Re5 {[%emt 0:00:51]} Rxg3+ {[%emt 0:00:17]} 43. Kf2 {[%emt 0:00:49]} Rd3 {[%emt 0:00:43]} 44. Ke2 {[%emt 0:01:35]} Ra3 {[%emt 0:02:22]} 45. Rxd5+ {[%emt 0:00:55]} Ke6 {[%emt 0:00:08]} 46. Rxh5 {[%emt 0:00:40]} Rxa4 {[%emt 0:00:04]} 47. Kf3 {[%emt 0:01:02]} Rb4 {[%emt 0:00:07]} 48. Kg4 {[%emt 0:00:37]} Kf7 {[%emt 0:00:06]} 49. Rg5 {[%emt 0:01:33]} Rb1 {[%emt 0:00:07]} 50. Rf5+ {[%emt 0:03:39]} Kg7 {[%emt 0:01:27]} 51. Rd5 {[%emt 0:00:20]} Rg1+ {[%emt 0:00:38]} 52. Kf5 {[%emt 0:00:07]} Rb1 {[%emt 0:00:08]} 53. Rd7+ {[%emt 0:00:30]} Kh8 {[%emt 0:00:25]} 54. Rb7 {[%emt 0:00:34]} Rh1 {[%emt 0:00:53]} 55. Rxb6 {[%emt 0:00:41]} Rxh4 {[%emt 0:00:06]} 56. Ke4 1-0

[Event "Skalica Open 2019"]
[Site "Skalica"]
[Date "2019.08.26"]
[Round "2.14"]
[White "Benes, Miroslav"]
[Black "Matejovic, Juraj"]
[Result "1/2-1/2"]
[ECO "D80"]
[WhiteElo "2107"]
[BlackElo "2237"]
[Annotator "ChessBase"]
[PlyCount "117"]
[EventDate "2019.08.25"]
[EventType "swiss"]
[EventCountry "SVK"]
[SourceTitle "playchess.com"]
[Source "ChessBase"]
[SourceQuality "1"]
[TimeControl "40/5400+30:1800+30"]

1. d4 {[%emt 0:00:00]} Nf6 {[%emt 0:05:06]} 2. c4 {[%emt 0:00:00]} g6 {[%emt 0:00:12]} 3. Nc3 {[%emt 0:00:05]} d5 {[%emt 0:00:14]} 4. e3 {[%emt 0:08:29]} Bg7 {[%emt 0:02:57]} 5. Qb3 {[%emt 0:00:08]} c6 {[%emt 0:23:49]} 6. cxd5 {[%emt 0:11:15]} cxd5 {[%emt 0:00:15]} 7. Bb5+ {[%emt 0:00:25]} Nc6 {[%emt 0:01:33]} 8. Nf3 {[%emt 0:00:27]} O-O {[%emt 0:00:20]} 9. O-O {[%emt 0:03:04]} Qd6 {[%emt 0:01:53]} 10. Bd2 {[%emt 0:08:08]} Bg4 {[%emt 0:03:34]} 11. Be2 {[%emt 0:10:07]} Na5 {[%emt 0:19:31]} 12. Qa4 {[%emt 0:01:18]} Bxf3 {[%emt 0:06:15]} 13. gxf3 {[%emt 0:00:42]} Nc6 {[%emt 0:00:52]} 14. f4 {[%emt 0:01:09]} a6 {[%emt 0:01:11]} 15. Rfc1 {[%emt 0:09:59]} b5 {[%emt 0:01:14]} 16. Qd1 {[%emt 0:00:44]} Rfc8 {[%emt 0:00:25]} 17. Qf1 {[%emt 0:02:02]} Nd7 {[%emt 0:05:53]} 18. Bf3 {[%emt 0:02:51]} e6 {[%emt 0:00:09]} 19. a3 {[%emt 0:03:33]} Nb6 {[%emt 0:02:39]} 20. b3 {[%emt 0:02:26]} Bf8 {[%emt 0:00:22]} 21. Nd1 {[%emt 0:05:14]} Qd8 {[%emt 0:01:35]} 22. Nb2 {[%emt 0:01:20]} Bd6 {[%emt 0:00:38]} 23. Nd3 {[%emt 0:00:28]} Qe7 {[%emt 0:00:18]} 24. Nc5 {[%emt 0:00:30]} Nd7 {[%emt 0:00:47]} 25. Bb4 {[%emt 0:02:25]} Nxc5 {[%emt 0:02:54]} 26. Bxc5 {[%emt 0:00:13]} Na5 {[%emt 0:00:40]} 27. Rc3 {[%emt 0:04:33]} Rc6 {[%emt 0:01:53]} 28. b4 {[%emt 0:05:17]} Nc4 {[%emt 0:00:21]} 29. a4 {[%emt 0:02:39]} Nd2 {[%emt 0:02:55]} 30. Qe2 {[%emt 0:00:52]} Nxf3+ {[%emt 0:00:13]} 31. Qxf3 {[%emt 0:00:02]} bxa4 {[%emt 0:07:29]} 32. Rxa4 {[%emt 0:01:40]} Qb7 {[%emt 0:00:57]} 33. Rca3 {[%emt 0:00:40]} Bxc5 {[%emt 0:02:27]} 34. bxc5 {[%emt 0:00:36]} Qb1+ {[%emt 0:01:29]} 35. Kg2 {[%emt 0:00:26]} Rb8 {[%emt 0:00:51]} 36. Ra1 {[%emt 0:04:11]} Qd3 {[%emt 0:00:55]} 37. R4a3 {[%emt 0:00:41]} Qc4 {[%emt 0:00:31]} 38. R3a2 {[%emt 0:02:12]} Qd3 {[%emt 0:00:53]} 39. f5 {[%emt 0:04:25]} Rb1 {[%emt 0:01:24]} 40. Rxb1 {[%emt 0:00:01]} Qxb1 {[%emt 0:00:08]} 41. fxe6 {[%emt 0:32:51]} fxe6 {[%emt 0:31:35]} 42. Qe2 {[%emt 0:00:00]} Qf5 {[%emt 0:00:00]} 43. f3 {[%emt 0:00:00]} Rc8 {[%emt 0:00:00]} 44. Rxa6 {[%emt 0:00:00]} Qg5+ {[%emt 0:00:00]} 45. Kh1 {[%emt 0:00:00]} Rb8 {[%emt 0:00:00]} 46. Ra1 {[%emt 0:00:00]} Rb3 {[%emt 0:00:00]} 47. Re1 {[%emt 0:00:00]} Qf6 {[%emt 0:00:03]} 48. Rc1 {[%emt 0:00:00]} Qg5 {[%emt 0:01:31]} 49. f4 {[%emt 0:00:00]} Qf5 {[%emt 0:03:06]} 50. Qd2 {[%emt 0:00:28]} Rd3 {[%emt 0:00:04]} 51. Qg2 {[%emt 0:02:21]} Qh5 {[%emt 0:00:35]} 52. Qf2 {[%emt 0:03:18]} Rd1+ {[%emt 0:00:50]} 53. Rxd1 {[%emt 0:00:01]} Qxd1+ {[%emt 0:00:04]} 54. Kg2 {[%emt 0:00:17]} Qg4+ {[%emt 0:00:15]} 55. Kf1 {[%emt 0:01:12]} Qd1+ {[%emt 0:00:13]} 56. Qe1 {[%emt 0:00:16]} Qf3+ {[%emt 0:00:44]} 57. Kg1 {[%emt 0:00:14]} Qg4+ {[%emt 0:00:11]} 58. Kh1 {[%emt 0:02:06]} Qf3+ {[%emt 0:00:11]} 59. Kg1 {[%emt 0:00:20]} 1/2-1/2

[Event "Skalica Open 2019"]
[Site "Skalica"]
[Date "2019.08.26"]
[Round "2.15"]
[White "Gasa, Patrik"]
[Black "Havelka, Ondrej"]
[Result "1/2-1/2"]
[ECO "D02"]
[WhiteElo "2187"]
[BlackElo "2112"]
[Annotator "ChessBase"]
[PlyCount "81"]
[EventDate "2019.08.25"]
[EventType "swiss"]
[EventCountry "SVK"]
[SourceTitle "playchess.com"]
[Source "ChessBase"]
[SourceQuality "1"]
[TimeControl "40/5400+30:1800+30"]

1. Nf3 {[%emt 0:00:00]} d5 {[%emt 0:00:00]} 2. d4 {[%emt 0:00:00]} Nf6 {[%emt 0:00:00]} 3. g3 {[%emt 0:00:00]} e6 {[%emt 0:00:00]} 4. Bg2 {[%emt 0:00:00]} Be7 {[%emt 0:00:02]} 5. O-O {[%emt 0:00:00]} O-O {[%emt 0:00:06]} 6. c4 {[%emt 0:00:11]} c6 {[%emt 0:00:19]} 7. b3 {[%emt 0:00:39]} b6 {[%emt 0:00:09]} 8. Bb2 {[%emt 0:05:46]} Bb7 {[%emt 0:00:24]} 9. Nbd2 {[%emt 0:04:15]} Na6 {[%emt 0:02:40]} 10. Ne5 {[%emt 0:04:58]} c5 {[%emt 0:01:31]} 11. e3 {[%emt 0:04:23]} Rc8 {[%emt 0:04:04]} 12. Rc1 {[%emt 0:01:29]} Qc7 {[%emt 0:16:05]} 13. a3 {[%emt 0:20:25]} dxc4 {[%emt 0:02:10]} 14. Rxc4 {[%emt 0:00:49]} Bxg2 {[%emt 0:00:09]} 15. Kxg2 {[%emt 0:00:02]} Rfd8 {[%emt 0:05:56]} 16. Qf3 {[%emt 0:05:27]} Bd6 {[%emt 0:08:31]} 17. Nd3 {[%emt 0:07:11]} Bf8 {[%emt 0:06:52]} 18. Ne4 {[%emt 0:11:55]} Nxe4 {[%emt 0:00:58]} 19. Qxe4 {[%emt 0:00:08]} b5 {[%emt 0:15:00]} 20. Rc3 {[%emt 0:07:43]} Qb8 {[%emt 0:04:28]} 21. Rfc1 {[%emt 0:11:42]} cxd4 {[%emt 0:00:39]} 22. Rxc8 {[%emt 0:01:08]} Rxc8 {[%emt 0:00:02]} 23. Rxc8 {[%emt 0:00:10]} Qxc8 {[%emt 0:00:01]} 24. Qxd4 {[%emt 0:00:21]} Qb7+ {[%emt 0:00:41]} 25. Kg1 {[%emt 0:00:09]} f6 {[%emt 0:03:00]} 26. Qd8 {[%emt 0:03:32]} Kf7 {[%emt 0:02:24]} 27. b4 {[%emt 0:06:46]} Be7 {[%emt 0:00:53]} 28. Qd4 {[%emt 0:00:47]} Nc7 {[%emt 0:01:10]} 29. Qd7 {[%emt 0:02:01]} Qd5 {[%emt 0:03:01]} 30. Qxc7 {[%emt 0:01:02]} Qxd3 {[%emt 0:00:02]} 31. Bd4 {[%emt 0:00:15]} a6 {[%emt 0:02:22]} 32. Bc5 {[%emt 0:01:20]} Qb1+ {[%emt 0:02:28]} 33. Kg2 {[%emt 0:00:54]} Qe4+ {[%emt 0:00:01]} 34. Kf1 {[%emt 0:00:50]} Qb1+ {[%emt 0:00:20]} 35. Ke2 {[%emt 0:00:20]} Qc2+ {[%emt 0:00:04]} 36. Kf3 {[%emt 0:00:21]} Qf5+ {[%emt 0:00:02]} 37. Kg2 {[%emt 0:00:15]} Qe4+ {[%emt 0:00:02]} 38. Kf1 {[%emt 0:00:56]} Qb1+ {[%emt 0:00:02]} 39. Ke2 {[%emt 0:00:07]} Qc2+ {[%emt 0:00:03]} 40. Kf3 {[%emt 0:00:12]} Qf5+ {[%emt 0:00:01]} 41. Kg2 {[%emt 0:30:08]} 1/2-1/2

[Event "Skalica Open 2019"]
[Site "Skalica"]
[Date "2019.08.26"]
[Round "2.16"]
[White "Kalisky, Vladimir"]
[Black "Hrbek, Stepan"]
[Result "1-0"]
[ECO "D04"]
[WhiteElo "2179"]
[BlackElo "2066"]
[Annotator "NA"]
[PlyCount "65"]
[EventDate "2019.08.25"]
[EventType "swiss"]
[EventCountry "SVK"]
[SourceTitle "playchess.com"]
[Source "ChessBase"]
[SourceQuality "1"]
[TimeControl "40/5400+30:1800+30"]

1. d4 {[%emt 0:00:00]} d5 {[%emt 0:00:13]} 2. Nf3 {[%emt 0:00:00]} Nf6 {[%emt 0:00:07]} 3. e3 {[%emt 0:00:00]} c5 {[%emt 0:08:18]} 4. b3 {[%emt 0:00:30]} Nc6 {[%emt 0:01:32]} 5. Bb2 {[%emt 0:00:25]} Bg4 {[%emt 0:07:45]} 6. Be2 {[%emt 0:00:06]} e6 {[%emt 0:00:06]} 7. Nbd2 {[%emt 0:00:19]} Be7 {[%emt 0:00:53]} 8. O-O {[%emt 0:00:36]} O-O {[%emt 0:00:04]} 9. h3 {[%emt 0:00:03]} Bh5 {[%emt 0:00:22]} 10. Rc1 {[%emt 0:00:45]} Rc8 {[%emt 0:08:05]} 11. c4 {[%emt 0:03:26]} cxd4 {[%emt 0:00:35]} 12. Nxd4 {[%emt 0:01:18]} Bxe2 {[%emt 0:06:32]} 13. Qxe2 {[%emt 0:00:10]} Qa5 {[%emt 0:07:24]} 14. cxd5 {[%emt 0:12:49]} Nxd5 {[%emt 0:03:06]} 15. Nxc6 {[%emt 0:19:31]} Rxc6 $14 {[%emt 0:02:19]} 16. Rxc6 {[%emt 0:08:20]} bxc6 {[%emt 0:01:37]} 17. Ra1 {[%emt 0:02:48]} Bf6 {[%emt 0:13:01]} 18. Nc4 {[%emt 0:01:08]} Qb5 {[%emt 0:00:15]} 19. Bxf6 {[%emt 0:03:51]} Nxf6 {[%emt 0:00:36]} 20. Rd1 {[%emt 0:02:02]} Nd5 {[%emt 0:02:52]} 21. Qd2 {[%emt 0:02:25]} c5 {[%emt 0:03:57]} 22. Qb2 {[%emt 0:06:03]} a5 {[%emt 0:09:46]} 23. e4 {[%emt 0:11:14]} Nb4 {[%emt 0:04:23]} 24. Rd6 {[%emt 0:00:55]} a4 {[%emt 0:02:01]} 25. Nb6 {[%emt 0:09:53]} axb3 {[%emt 0:03:04]} 26. Qxb3 {[%emt 0:00:25]} Qe2 {[%emt 0:00:25]} 27. Nd7 {[%emt 0:03:10]} Re8 {[%emt 0:03:06]} 28. a3 {[%emt 0:02:08]} Nc2 {[%emt 0:03:55]} 29. Qg3 {[%emt 0:00:26]} Ra8 {[%emt 0:06:10]} 30. Nf6+ {[%emt 0:01:36]} Kh8 {[%emt 0:01:34]} 31. Rd7 {[%emt 0:04:32]} Rf8 {[%emt 0:00:51]} 32. Rxf7 {[%emt 0:00:35]} Qd1+ {[%emt 0:00:33]} 33. Kh2 {[%emt 0:00:17]} 1-0

[Event "Skalica Open 2019"]
[Site "Skalica"]
[Date "2019.08.26"]
[Round "2.18"]
[White "Sefcik, Marek"]
[Black "Kapusta, Petr"]
[Result "0-1"]
[ECO "B53"]
[WhiteElo "2024"]
[BlackElo "2157"]
[Annotator "ChessBase"]
[PlyCount "105"]
[EventDate "2019.08.25"]
[EventType "swiss"]
[EventCountry "SVK"]
[SourceTitle "playchess.com"]
[Source "ChessBase"]
[SourceQuality "1"]
[TimeControl "40/5400+30:1800+30"]

1. e4 {[%emt 0:00:00]} c5 {[%emt 0:00:00]} 2. Nf3 {[%emt 0:00:00]} d6 {[%emt 0:00:00]} 3. d4 {[%emt 0:00:05]} cxd4 {[%emt 0:00:00]} 4. Qxd4 {[%emt 0:00:10]} Nc6 {[%emt 0:00:06]} 5. Bb5 {[%emt 0:00:08]} Bd7 {[%emt 0:00:05]} 6. Bxc6 {[%emt 0:00:08]} Bxc6 {[%emt 0:00:05]} 7. Nc3 {[%emt 0:02:16]} h6 {[%emt 0:04:43]} 8. Be3 {[%emt 0:02:49]} Nf6 {[%emt 0:00:37]} 9. h3 {[%emt 0:08:18]} e5 {[%emt 0:00:36]} 10. Qd3 {[%emt 0:04:10]} Be7 {[%emt 0:00:18]} 11. O-O-O {[%emt 0:02:48]} O-O {[%emt 0:00:14]} 12. g4 {[%emt 0:07:15]} Qa5 {[%emt 0:38:12]} 13. Nd2 {[%emt 0:10:03]} b5 {[%emt 0:07:31]} 14. Nb3 {[%emt 0:06:28]} Qc7 {[%emt 0:00:40]} 15. g5 {[%emt 0:09:33]} hxg5 16. Bxg5 {[%emt 0:16:06]} b4 {[%emt 0:01:36]} 17. Bxf6 {[%emt 0:01:06]} bxc3 {[%emt 0:03:22]} 18. Bxe7 {[%emt 0:04:10]} cxb2+ {[%emt 0:00:13]} 19. Kxb2 {[%emt 0:00:22]} Qxe7 {[%emt 0:00:12]} 20. Qxd6 {[%emt 0:00:24]} Qxd6 {[%emt 0:03:38]} 21. Rxd6 {[%emt 0:00:02]} Bxe4 {[%emt 0:00:12]} 22. Re1 {[%emt 0:00:21]} Bf5 {[%emt 0:01:25]} 23. Rxe5 Bxh3 {[%emt 0:00:11]} 24. Ra5 {[%emt 0:01:30]} Rfe8 {[%emt 0:02:18]} 25. c4 {[%emt 0:04:41]} Re4 {[%emt 0:06:31]} 26. Rd4 {[%emt 0:00:52]} Re2+ {[%emt 0:01:48]} 27. Rd2 {[%emt 0:00:06]} Re7 {[%emt 0:00:12]} 28. Kc3 {[%emt 0:01:56]} Rc8 {[%emt 0:02:15]} 29. c5 {[%emt 0:05:13]} g6 {[%emt 0:01:13]} 30. Rd6 {[%emt 0:01:15]} Rcc7 {[%emt 0:04:18]} 31. Nd4 {[%emt 0:03:49]} Re5 {[%emt 0:02:15]} 32. Kb4 {[%emt 0:03:26]} Rb7+ {[%emt 0:00:42]} 33. Rb5 {[%emt 0:00:28]} Rc7 {[%emt 0:02:12]} 34. c6 {[%emt 0:01:36]} Re1 {[%emt 0:00:29]} 35. Ka5 {[%emt 0:01:16]} Rc1 {[%emt 0:01:32]} 36. Rb2 {[%emt 0:02:45]} Kf8 {[%emt 0:05:30]} 37. Re2 {[%emt 0:01:35]} Rc4 {[%emt 0:04:05]} 38. Re5 {[%emt 0:00:36]} Kg7 {[%emt 0:03:32]} 39. a4 {[%emt 0:00:54]} Bg2 {[%emt 0:03:45]} 40. Nb5 {[%emt 0:00:40]} Bxc6 {[%emt 0:02:33]} 41. Red5 {[%emt 0:11:56]} Rb7 {[%emt 0:08:48]} 42. Rd4 {[%emt 0:02:04]} Rc5 {[%emt 0:00:19]} 43. Kb4 {[%emt 0:02:58]} Rc2 {[%emt 0:00:08]} 44. Kb3 {[%emt 0:01:30]} Rc1 {[%emt 0:01:05]} 45. Rb4 {[%emt 0:01:52]} a5 {[%emt 0:01:44]} 46. Rxc6 {[%emt 0:09:37]} Rb1+ {[%emt 0:01:24]} 47. Ka3 {[%emt 0:00:56]} Rxb4 {[%emt 0:00:16]} 48. Ra6 {[%emt 0:00:34]} R4xb5 {[%emt 0:00:17]} 49. axb5 {[%emt 0:00:16]} Rxb5 {[%emt 0:00:07]} 50. Ka4 {[%emt 0:00:44]} Rf5 {[%emt 0:00:10]} 51. Rxa5 {[%emt 0:00:04]} Rxf2 {[%emt 0:00:13]} 52. Kb4 {[%emt 0:00:07]} Rc2 {[%emt 0:00:11]} 53. Ka4 0-1